bitfinex/quotes_ETHUSD_20250215
["timestamp","ask_amount","ask_price","bid_price","bid_amount"]
[1739578896437,3.67747,2719.3,2718.7,6.77093635]
[1739578897014,3.67747,2719.3,2718.8,3.67801]
[1739578897531,3.67747,2719.3,2718.7,6.77101635]
[1739578898133,3.67747,2719.3,2718.8,3.67806]
[1739578898310,3.67747,2719.3,2718.7,3.09283635]
[1739578898512,3.67753,2719.3,2718.7,6.77096635]
[1739578899831,0.27260898,2719.2,2718.7,6.77096635]
[1739578900408,0.27260898,2719.2,2718.8,3.67808]
[1739578900904,0.27260898,2719.2,2718.8,7.35616]
[1739578901104,0.27260898,2719.2,2718.9,3.67795]
[1739578901338,0.27260898,2719.2,2718.8,3.67808]
[1739578901514,3.67728,2719.4,2718.8,3.67808]
[1739578901714,7.35464,2719.4,2718.8,3.67808]
[1739578901915,3.67728,2719.4,2718.8,7.35607]
[1739578902116,5.39,2719.3,2718.8,7.35607]
[1739578902836,5.66245403,2719.3,2718.7,3.09283635]
[1739578903135,5.66245403,2719.3,2719.0,3.67782]
[1739578903703,5.66245403,2719.3,2719.2,3.67755]
[1739578904727,5.39,2719.3,2719.2,3.67755]
[1739578904918,5.39,2719.3,2719.2,5.48245563]
[1739578905300,6.1756,2720.1,2719.2,5.48245563]
[1739578905526,0.267,2720.3,2719.9,3.67658]
[1739578905918,3.94315,2720.3,2719.8,3.09283635]
[1739578906418,3.94315,2720.3,2719.7,3.67678]
[1739578906419,7.6193,2720.3,2719.7,3.67676]
[1739578906828,3.94315,2720.3,2719.7,3.67675]
[1739578907015,0.04595838,2720.2,2719.5,3.09283635]
[1739578907215,0.7856,2719.9,2719.5,6.76989635]
[1739578907414,0.7856,2719.9,2719.5,3.09283635]
[1739578907614,0.7856,2719.9,2719.6,3.677]
[1739578908203,0.7856,2719.9,2719.6,7.35393]
[1739578908402,0.7856,2719.9,2719.6,3.67693]
[1739578908937,3.67709,2719.6,2719.2,3.09283635]
[1739578909136,0.7856,2719.4,2719.2,3.09283635]
[1739578909749,0.7856,2719.4,2719.2,6.77036635]
[1739578910258,3.67674,2719.8,2719.2,6.77036635]
[1739578910259,0.7856,2719.8,2719.2,6.77036635]
[1739578910452,0.7856,2719.8,2719.4,3.67727]
[1739578910815,4.46236,2719.8,2719.2,6.77036635]
[1739578911235,0.7856,2719.8,2719.3,3.67737]
[1739578911441,0.7856,2719.8,2719.4,3.67719]
[1739578911666,0.7856,2719.8,2719.2,3.09283635]
[1739578911852,3.67693,2719.7,2719.2,6.77034635]
[1739578912177,4.46247,2719.8,2719.3,3.6773]
[1739578912852,4.46243,2719.8,2719.3,3.6773]
[1739578913150,3.6769,2719.7,2719.2,6.77037635]
[1739578913319,3.72289745,2719.7,2719.1,3.67759]
[1739578913720,3.6773,2719.4,2718.9,3.09283635]
[1739578913948,3.6773,2719.4,2718.9,6.77071635]
[1739578913949,0.84617037,2719.3,2718.9,6.77071635]
[1739578914253,4.47781,2719.2,2718.6,3.67824]
[1739578915143,3.67775,2719.1,2718.6,3.67824]
[1739578915520,3.67775,2719.1,2718.7,3.67822]
[1739578916661,0.8002,2719.2,2718.7,7.35631]
[1739578917963,0.8002,2719.2,2718.7,3.67809]
[1739578918264,4.4778,2719.2,2718.7,3.67809]
[1739578918961,0.8002,2719.2,2718.8,3.67806]
[1739578919463,4.47776,2719.2,2718.8,3.67806]
[1739578919839,4.47745,2719.5,2718.9,6.77077635]
[1739578920056,4.47745,2719.5,2719.0,3.67776]
[1739578920446,3.6773,2719.4,2719.0,3.67776]
[1739578920630,0.8002,2719.5,2719.1,3.67762]
[1739578920831,9.33407,2719.6,2719.2,3.67752]
[1739578921765,5.39,2719.6,2718.9,3.09283635]
[1739578922067,9.06705,2719.6,2719.1,3.67764]
[1739578922365,5.39,2719.6,2719.1,3.67761]
[1739578922572,5.39,2719.6,2719.2,3.67746]
[1739578922797,3.67729,2719.4,2719.0,3.67779]
[1739578922971,0.04596737,2719.5,2719.0,3.67779]
[1739578923345,0.04596737,2719.5,2719.1,3.67762]
[1739578923687,3.67749,2719.3,2718.9,3.09283635]
[1739578923972,3.67737,2719.4,2718.9,6.77071635]
[1739578924294,9.06706,2719.6,2719.0,7.35548]
[1739578924295,12.74417,2719.6,2719.0,7.35548]
[1739578924435,3.67735,2719.4,2718.9,6.77077635]
[1739578924637,3.67753,2719.3,2718.9,3.09283635]
[1739578924952,4.47775,2719.2,2718.8,3.67807]
[1739578925366,3.6779,2719.0,2718.6,3.09283635]
[1739578925568,9.06774,2719.1,2718.6,6.77109635]
[1739578925943,3.67785,2719.0,2718.6,3.09283635]
[1739578926159,0.04597599,2718.9,2718.6,3.09283635]
[1739578926469,0.8002,2718.8,2718.1,3.67894]
[1739578926650,0.8002,2718.8,2718.2,3.68288]
[1739578926651,3.72431254,2718.7,2718.2,3.68288]
[1739578927349,0.04598254,2718.7,2718.2,0.004]
[1739578927568,3.67823,2718.7,2718.2,0.004]
[1739578927873,0.8002,2718.8,2718.2,0.004]
[1739578928078,0.8002,2718.8,2718.3,3.6787]
[1739578928273,0.73931076,2719.2,2718.3,3.6787]
[1739578928274,3.67763,2719.2,2718.5,3.67847]
[1739578928476,3.67756,2719.2,2718.9,3.09283635]
[1739578928791,3.67756,2719.2,2718.7,3.67814]
[1739578929368,0.85037375,2719.1,2718.6,6.77118635]
[1739578929589,3.67791,2719.0,2718.5,3.67849]
[1739578930494,0.8044,2719.1,2718.3,3.09283635]
[1739578930495,3.67834,2718.7,2718.3,3.09283635]
[1739578930902,3.72443322,2718.6,2718.2,0.004]
[1739578931100,4.52883322,2718.6,2718.2,0.004]
[1739578932099,0.85038322,2718.6,2718.2,0.004]
[1739578932304,3.67861,2718.5,2718.2,0.004]
[1739578932510,0.8044,2718.6,2718.2,0.004]
[1739578933102,4.74943,2718.9,2718.2,3.68281]
[1739578933304,3.6783,2718.7,2718.2,3.68281]
[1739578933669,3.6783,2718.7,2718.2,0.004]
[1739578933870,3.67856,2718.5,2718.2,0.004]
[1739578934070,3.6783,2718.7,2718.2,0.004]
[1739578934071,3.67865,2718.4,2718.2,0.004]
[1739578934401,4.48305,2718.4,2718.2,0.004]
[1739578934702,3.72474577,2718.3,2718.2,0.004]
[1739578935389,0.04598577,2718.3,2718.2,0.004]
[1739578935783,3.72474577,2718.3,2718.2,0.004]
[1739578935967,4.52914577,2718.3,2718.2,0.004]
[1739578937017,13.74161672,2718.3,2718.2,0.004]
[1739578937218,13.69563095,2718.3,2718.2,0.004]
[1739578937516,15.89863095,2718.3,2718.2,0.004]
[1739578937742,3.68025,2717.2,2717.1,0.005]
[1739578938033,4.48447,2717.4,2717.1,0.005]
[1739578938322,3.68025,2717.2,2717.1,0.005]
[1739578938883,8.03465,2717.2,2717.1,0.005]
[1739578939330,15.62765,2717.2,2717.1,0.005]
[1739578939487,13.33062635,2717.1,2717.0,8.9e-06]
[1739578939915,13.33062635,2717.1,2715.6,3.68242]
[1739578939916,0.8044,2716.6,2715.6,3.68242]
[1739578940116,0.8044,2716.6,2715.4,3.68257]
[1739578940117,3.68197,2716.0,2715.4,3.68257]
[1739578940298,0.04602834,2715.9,2715.4,3.68257]
[1739578940499,0.04602834,2715.9,2715.5,3.68254]
[1739578940699,0.04602834,2716.1,2715.6,3.68241]
[1739578940899,0.8044,2716.3,2715.9,3.6819]
[1739578941099,0.8044,2716.3,2716.0,3.68177]
[1739578941390,0.8044,2716.3,2715.6,3.09283635]
[1739578941588,0.8044,2716.3,2715.7,3.68218]
[1739578942038,0.8044,2716.3,2715.8,3.68208]
[1739578942193,0.8044,2716.7,2716.1,3.68173]
[1739578942539,0.04602163,2716.6,2716.1,3.68173]
[1739578942840,0.8044,2716.7,2716.3,3.68145]
[1739578943205,0.8044,2716.7,2716.3,3.68136]
[1739578943395,5.66,2717.0,2716.5,3.6812]
[1739578943602,6.1944,2717.0,2716.5,3.6812]
[1739578944343,6.1944,2717.0,2716.6,3.68101]
[1739578944544,0.04601571,2716.9,2716.5,3.6812]
[1739578945074,6.1944,2717.0,2716.5,3.6812]
[1739578945439,6.1944,2717.0,2716.6,3.68104]
[1739578946379,9.87493,2717.0,2716.3,3.6814]
[1739578947331,6.1944,2717.0,2716.1,0.8062]
[1739578947536,6.1944,2717.0,2716.5,3.68111]
[1739578948153,0.04601651,2716.9,2716.5,3.68111]
[1739578948365,6.1944,2717.0,2716.3,3.68138]
[1739578948561,0.0460165,2716.9,2716.4,3.68126]
[1739578948974,3.7266865,2716.9,2716.3,3.68138]
[1739578949175,4.23116,2716.6,2716.1,3.68169]
[1739578949341,3.72724344,2716.5,2716.0,3.68185]
[1739578949544,0.04602344,2716.5,2716.0,3.68185]
[1739578949765,4.27714445,2716.6,2716.0,3.68185]
[1739578949956,4.27714445,2716.6,2716.1,3.68174]
[1739578950158,0.55,2716.6,2716.1,3.68174]
[1739578950362,0.84922317,2716.7,2716.3,3.68144]
[1739578950676,0.8032,2716.7,2716.0,3.83308696]
[1739578950875,0.27,2716.8,2716.6,3.68107]
[1739578951078,0.27,2716.8,2716.5,3.68119]
[1739578951280,0.31601647,2716.8,2716.4,3.68132]
[1739578951459,0.27,2716.8,2716.4,3.68124]
[1739578951660,0.27,2716.8,2716.5,3.68113]
[1739578952186,5.827,2717.2,2716.3,4.59488696]
[1739578952479,0.04600877,2717.1,2717.0,3.68051]
[1739578952660,5.87300781,2717.2,2716.9,7.36123]
[1739578953180,5.87300781,2717.2,2716.9,3.68058]
[1739578953380,5.827,2717.2,2717.0,3.68051]
[1739578953752,5.827,2717.2,2716.9,3.68058]
[1739578953954,5.827,2717.2,2716.9,7.36118]
[1739578954247,5.827,2717.2,2716.9,3.68058]
[1739578954486,5.827,2717.2,2716.9,7.36115]
[1739578954644,5.827,2717.2,2717.0,3.68044]
[1739578954845,5.827,2717.2,2716.6,3.83308696]
[1739578955185,5.827,2717.2,2717.1,3.68039]
[1739578955677,5.87300575,2717.2,2716.9,3.68066]
[1739578955880,5.87300575,2717.2,2717.0,3.68051]
[1739578956089,5.827,2717.2,2717.1,3.68039]
[1739578956658,5.827,2717.2,2716.7,3.68093]
[1739578956859,5.827,2717.2,2717.1,3.68039]
[1739578957482,3.68053,2717.0,2716.5,3.68119]
[1739578957683,6.6535,2717.2,2716.3,4.59488696]
[1739578957887,6.6535,2717.2,2716.6,3.83308696]
[1739578957888,5.827,2717.2,2716.6,3.83308696]
[1739578958066,5.827,2717.2,2717.1,3.68039]
[1739578958261,0.8265,2717.5,2717.2,3.68014]
[1739578958464,0.8265,2717.8,2717.4,3.67995]
[1739578958805,0.27,2718.1,2717.8,3.67932]
[1739578958806,0.8265,2718.1,2717.8,3.67932]
[1739578959104,0.782,2718.4,2718.0,3.67913]
[1739578959254,0.27,2718.6,2718.2,3.6788]
[1739578959992,0.31598609,2718.6,2718.1,3.67901]
[1739578960674,3.99443609,2718.6,2718.1,3.67901]
[1739578960875,0.31598609,2718.6,2718.1,3.67901]
[1739578961062,6.612,2718.7,2718.2,3.6789]
[1739578961063,5.83,2718.7,2718.2,3.6789]
[1739578961268,5.83,2718.7,2718.4,3.67853]
[1739578961469,0.04597897,2718.6,2718.2,3.67881]
[1739578962057,5.83,2718.7,2718.2,3.67881]
[1739578962259,0.04598336,2718.6,2718.2,3.67881]
[1739578963094,0.04598336,2718.6,2718.0,3.67913]
[1739578963300,3.72436336,2718.6,2718.0,3.67913]
[1739578964686,5.83,2718.7,2718.1,3.83308696]
[1739578964885,5.83,2718.7,2718.2,3.6789]
[1739578965067,5.87598133,2718.7,2718.2,7.3577]
[1739578965267,5.87598133,2718.7,2718.2,3.6788]
[1739578965674,5.87598133,2718.7,2718.2,3.67877]
[1739578965874,5.87598133,2718.7,2718.0,3.67912]
[1739578966174,3.67845,2718.6,2718.0,3.67912]
[1739578966379,0.04598639,2718.5,2718.0,3.67912]
[1739578966587,0.04598639,2718.5,2718.0,7.35821]
[1739578966765,0.04598639,2718.5,2718.0,3.67909]
[1739578966971,3.72457639,2718.5,2717.9,0.7743]
[1739578967170,7.35692,2718.6,2718.0,3.67917]
[1739578967383,3.67845,2718.6,2718.0,3.67917]
[1739578967601,3.67851,2718.5,2718.0,3.67917]
[1739578967901,3.67851,2718.5,2717.9,0.7743]
[1739578967902,0.782,2718.4,2717.6,3.0]
[1739578968090,0.782,2718.4,2717.9,3.67918]
[1739578968624,0.82798871,2718.4,2717.9,3.67918]
[1739578968974,4.50663871,2718.4,2717.9,3.67918]
[1739578970525,0.82798871,2718.4,2717.9,3.67921]
[1739578970810,0.782,2718.4,2717.6,3.67971]
[1739578970982,3.67898,2718.2,2717.5,4.45411]
[1739578971182,3.72505534,2718.1,2717.6,3.67962]
[1739578972113,3.67918,2718.0,2717.5,3.67981]
[1739578972295,0.04599462,2717.9,2717.5,3.67981]
[1739578972676,0.04599462,2717.9,2717.3,3.68005]
[1739578973006,0.04599462,2717.9,2716.9,7.01909204]
[1739578973007,4.46146,2717.8,2717.1,3.68029]
[1739578973215,3.67994,2717.5,2717.0,3.68051]
[1739578974109,4.50881,2717.3,2716.7,3.68083]
[1739578974279,0.04600624,2717.2,2716.8,3.68079]
[1739578974477,0.8286,2717.3,2717.0,3.68052]
[1739578975090,0.8286,2717.3,2717.1,3.68038]
[1739578975288,0.8286,2717.3,2717.0,3.68052]
[1739578977083,0.87460604,2717.3,2717.0,3.68052]
[1739578977283,0.8286,2717.3,2717.0,3.68052]
[1739578978109,0.8286,2717.3,2716.5,3.6811]
[1739578978110,3.68045,2717.1,2716.5,3.6811]
[1739578978312,0.04601261,2717.0,2716.5,7.36222]
[1739578978616,3.72654261,2717.0,2716.5,7.36222]
[1739578978815,3.72654261,2717.0,2716.1,0.7534]
[1739578978981,3.68076,2716.9,2716.3,3.68134]
[1739578979181,3.68059,2717.0,2716.4,3.68134]
[1739578979407,3.68059,2717.0,2716.5,3.6811]
[1739578980347,0.04601312,2716.9,2716.5,7.36223]
[1739578980489,3.68059,2717.0,2716.5,3.6811]
[1739578980683,4.96715537,2717.2,2716.2,3.68158]
[1739578980883,4.96715537,2717.2,2716.7,3.68082]
[1739578981319,3.6805,2717.1,2716.5,3.6811]
[1739578981534,3.6805,2717.1,2716.5,7.36223]
[1739578981897,3.6805,2717.1,2716.5,3.6811]
[1739578982061,3.6805,2717.1,2716.5,7.36223]
[1739578982402,3.6805,2717.1,2716.5,3.6811]
[1739578982653,4.96715537,2717.2,2716.3,4.57658496]
[1739578982816,0.73681537,2717.2,2716.7,3.68085]
[1739578983158,4.50874,2717.3,2716.8,3.68072]
[1739578983358,0.8286,2717.3,2716.9,3.68058]
[1739578983649,0.8286,2717.3,2717.0,3.68049]
[1739578984010,0.8286,2717.5,2717.0,7.36094]
[1739578984255,0.8286,2717.5,2717.0,3.68045]
[1739578984460,4.55448674,2717.5,2717.0,3.68045]
[1739578984610,1.56824746,2717.5,2717.1,3.68038]
[1739578985561,5.24811746,2717.5,2716.9,7.36111]
[1739578985722,5.24811746,2717.5,2717.0,3.6805]
[1739578985902,4.50854,2717.5,2717.1,3.68037]
[1739578986915,0.8286,2717.9,2717.5,3.67984]
[1739578987243,0.74943778,2718.2,2718.0,3.67916]
[1739578987542,4.50719,2718.5,2718.0,3.6791]
[1739578987543,0.8286,2718.5,2718.0,3.6791]
[1739578988044,0.8286,2718.5,2718.2,3.67882]
[1739578988343,5.83,2718.7,2718.2,3.67877]
[1739578989043,5.83,2718.7,2718.2,7.35759]
[1739578989227,5.83,2718.7,2718.3,3.67875]
[1739578989615,6.54778487,2718.7,2718.3,3.67875]
[1739578990321,6.54778487,2718.7,2718.5,3.67842]
[1739578990511,5.83,2718.7,2718.5,3.67842]
[1739578991345,5.83,2718.7,2718.6,3.67836]
[1739578991543,5.83,2718.7,2718.5,7.35683]
[1739578992207,5.83,2718.7,2718.5,7.35682]
[1739578992414,5.83,2718.7,2718.5,4.87432238]
[1739578992655,0.04597672,2719.3,2718.7,3.67811]
[1739578992843,0.04597672,2719.3,2718.8,3.67806]
[1739578993522,0.7674,2719.4,2718.9,3.67792]
[1739578993731,0.7674,2719.4,2719.0,3.67782]
[1739578994046,3.72344073,2719.3,2718.8,0.7766]
[1739578994360,0.04597073,2719.3,2718.8,0.7766]
[1739578994728,0.04597073,2719.3,2718.9,3.67788]
[1739578995138,4.44481,2719.4,2718.9,3.67786]
[1739578995337,4.44481,2719.4,2719.0,3.67781]
[1739578995338,0.7674,2719.4,2719.0,3.67781]
[1739578995648,0.7674,2719.4,2718.7,3.67813]
[1739578995849,0.7674,2719.4,2718.6,3.82580379]
[1739578995850,4.44471,2719.4,2718.8,3.67796]
[1739578996061,3.67755,2719.2,2718.6,3.67836]
[1739578996263,3.67755,2719.2,2718.5,4.45502]
[1739578996464,0.04597344,2719.1,2718.5,4.45502]
[1739578996667,0.04597344,2719.1,2718.6,3.67836]
[1739578996817,3.67755,2719.2,2718.7,3.67822]
[1739578997013,3.72352349,2719.3,2718.8,3.67807]
[1739578997014,3.67755,2719.3,2718.8,3.67807]
[1739578997753,3.67755,2719.3,2718.7,3.67822]
[1739578997754,3.67752,2719.3,2718.7,3.67813]
[1739578997931,3.67761,2719.2,2718.7,3.67813]
[1739578998141,3.67761,2719.2,2718.7,7.35628]
[1739578998343,0.7674,2719.4,2718.7,3.67813]
[1739578998672,3.67752,2719.3,2718.8,3.67798]
[1739578998820,3.67752,2719.3,2718.9,3.67795]
[1739579000153,4.44469,2719.4,2718.9,7.35584]
[1739579000358,4.44469,2719.4,2718.9,3.67789]
[1739579001058,4.44469,2719.4,2718.7,3.67813]
[1739579001454,3.67755,2719.2,2718.7,3.67813]
[1739579001662,3.67775,2719.1,2718.6,7.50405379]
[1739579002172,3.67775,2719.1,2718.7,3.67821]
[1739579002366,3.67791,2719.0,2718.5,4.455]
[1739579002569,3.67791,2719.0,2718.2,3.82580379]
[1739579002570,0.7674,2719.0,2718.2,4.60240379]
[1739579002770,0.04598293,2718.9,2718.1,3.67897]
[1739579002961,3.67831,2718.7,2718.2,3.6789]
[1739579003163,3.67831,2718.7,2718.3,3.67876]
[1739579003361,4.44529,2719.0,2718.5,3.67845]
[1739579003987,3.6781,2718.8,2718.2,3.67888]
[1739579004278,3.6784,2718.6,2718.1,3.67897]
[1739579004440,3.6785,2718.5,2718.1,3.67897]
[1739579004771,0.04598324,2718.4,2717.8,3.67942]
[1739579005078,3.67879,2718.3,2717.8,3.67944]
[1739579005265,0.04598848,2718.2,2717.8,3.67944]
[1739579005466,3.67879,2718.3,2717.8,3.67944]
[1739579005666,3.67891,2718.2,2717.7,7.359]
[1739579005862,3.67879,2718.3,2717.7,7.359]
[1739579006267,3.67879,2718.3,2717.8,3.67935]
[1739579006779,4.44852,2718.5,2717.6,0.7734]
[1739579007076,3.679,2718.2,2717.7,3.67958]
[1739579007280,0.77,2718.0,2717.2,4.45358]
[1739579007456,0.04599865,2717.9,2717.2,4.45358]
[1739579007657,0.04599865,2717.9,2717.2,4.40358]
[1739579008080,3.68008,2717.4,2716.8,7.36145]
[1739579008382,8.12986,2717.5,2716.9,3.68061]
[1739579008581,0.04600416,2717.4,2716.9,3.68061]
[1739579009277,0.77,2717.8,2717.2,3.68013]
[1739579009441,4.44947,2717.8,2717.2,3.68013]
[1739579010057,8.12899,2717.8,2717.2,3.68013]
[1739579011067,6.08739,2718.6,2717.2,3.68013]
[1739579011068,4.44868,2718.4,2717.9,3.67924]
[1739579011250,3.67885,2718.3,2717.8,3.67932]
[1739579011952,4.44868,2718.4,2717.8,3.67932]
[1739579011953,4.44868,2718.4,2717.9,3.67928]
[1739579012272,4.44868,2718.4,2717.8,3.67932]
[1739579012457,8.1274,2718.4,2717.8,3.67932]
[1739579012654,4.44868,2718.4,2717.8,3.67932]
[1739579012985,3.67878,2718.3,2717.8,4.124592]
[1739579013146,3.72476852,2718.3,2717.8,4.124592]
[1739579013546,3.72476852,2718.3,2717.8,3.67932]
[1739579014155,7.3579,2718.2,2717.6,8.13267]
[1739579014483,0.77,2718.4,2717.6,0.7734]
[1739579014484,4.44872,2718.4,2717.6,0.7734]
[1739579014651,3.67891,2718.2,2717.5,3.82580379]
[1739579014848,0.04599007,2718.1,2717.6,3.67961]
[1739579015283,0.04599007,2718.1,2717.6,7.35923]
[1739579015784,0.04599007,2718.1,2717.7,3.67957]
[1739579016469,3.67891,2718.2,2717.7,3.67957]
[1739579016793,4.44871,2718.4,2717.7,0.735942]
[1739579016976,4.44871,2718.4,2717.9,3.67928]
[1739579017495,8.12743,2718.4,2717.9,3.67928]
[1739579017675,4.44871,2718.4,2717.9,3.67928]
[1739579018366,8.12744,2718.4,2717.9,3.67928]
[1739579019434,3.67878,2718.3,2717.9,3.67928]
[1739579021889,3.6789,2718.2,2717.8,3.67944]
[1739579022688,4.4487,2718.4,2717.9,3.6793]
[1739579023086,3.67883,2718.3,2717.8,3.67944]
[1739579023298,3.67883,2718.3,2717.7,3.84515456]
[1739579023605,3.67883,2718.3,2717.8,3.67941]
[1739579023784,3.67883,2718.3,2717.9,3.67929]
[1739579023965,3.67883,2718.3,2717.8,7.35875]
[1739579024165,3.67897,2718.2,2717.7,7.52472456]
[1739579024365,7.35773,2718.3,2717.8,3.67942]
[1739579024917,3.67883,2718.3,2717.9,3.67928]
[1739579026062,0.77,2718.4,2717.9,7.35856]
[1739579026268,4.44865,2718.4,2717.9,3.67923]
[1739579026499,3.67878,2718.3,2717.9,4.79961646]
[1739579026669,3.67878,2718.3,2717.8,3.67942]
[1739579027474,3.67883,2718.3,2717.8,3.67942]
[1739579028077,3.67883,2718.3,2717.9,3.67929]
[1739579028388,3.67897,2718.2,2717.8,3.67938]
[1739579028974,0.77,2718.4,2717.7,3.10921256]
[1739579029316,3.67891,2718.2,2717.7,6.78878256]
[1739579029620,3.67891,2718.2,2717.8,3.67943]
[1739579030726,3.67905,2718.1,2717.7,6.78877256]
[1739579031018,3.72479826,2718.3,2717.7,3.10921256]
[1739579031172,3.67893,2718.2,2717.8,3.67943]
[1739579031567,5.93379826,2718.3,2717.7,3.10921256]
[1739579031802,3.67898,2718.2,2717.7,6.78876256]
[1739579033776,3.67898,2718.2,2717.7,3.10921256]
[1739579033976,3.67898,2718.2,2717.8,3.67943]
[1739579034822,3.72508127,2718.1,2717.7,3.10921256]
[1739579035115,3.67909,2718.1,2717.7,3.10921256]
[1739579035321,3.67909,2718.1,2717.7,6.78872256]
[1739579035923,3.67891,2718.2,2717.7,6.78872256]
[1739579036517,3.67891,2718.2,2717.8,3.67944]
[1739579036672,3.67883,2718.3,2717.8,3.67934]
[1739579036877,4.44869,2718.4,2717.9,3.67924]
[1739579038425,3.67879,2718.3,2717.9,3.67924]
[1739579038585,3.67879,2718.3,2717.7,3.10921256]
[1739579038785,3.67879,2718.3,2717.8,7.35873]
[1739579039094,3.67879,2718.3,2717.9,3.67931]
[1739579042142,3.67854,2718.5,2717.2,4.43583]
[1739579042143,3.67925,2718.0,2717.2,4.43583]
[1739579042442,4.55710998,2717.9,2717.2,3.68025]
[1739579042651,4.51111,2717.9,2717.4,3.67996]
[1739579042838,0.8317,2717.9,2717.4,3.6799]
[1739579042998,0.8317,2717.9,2717.4,6.78911256]
[1739579043310,0.8317,2717.9,2717.5,3.67978]
[1739579043948,0.8317,2717.9,2717.4,3.10921256]
[1739579044247,3.6792,2718.0,2717.5,3.99064126]
[1739579044461,3.72519378,2718.0,2717.5,3.67972]
[1739579044644,3.67937,2717.9,2717.4,6.78906256]
[1739579045055,3.67937,2717.9,2717.5,3.67982]
[1739579045344,0.04599378,2718.0,2717.5,3.67982]
[1739579045546,3.72516378,2718.0,2717.5,3.67982]
[1739579045715,3.72516378,2718.0,2717.5,3.67978]
[1739579046026,3.67917,2718.0,2717.5,3.67978]
[1739579046836,3.67917,2718.0,2717.5,7.35955]
[1739579047154,3.67917,2718.0,2717.5,3.67977]
[1739579047828,0.04599376,2718.1,2717.7,6.78871256]
[1739579048698,3.67923,2718.0,2717.5,3.67977]
[1739579048901,3.7253916,2717.9,2717.4,6.78912256]
[1739579049226,7.35881,2717.9,2717.4,6.78912256]
[1739579049646,3.67945,2717.8,2717.4,3.10921256]
[1739579049811,4.46283,2717.6,2717.1,3.10921256]
[1739579050016,4.46283,2717.6,2716.8,7.61198256]
[1739579050017,3.68006,2717.4,2716.8,7.61198256]
[1739579050370,3.68006,2717.4,2716.9,3.68065]
[1739579051367,3.67986,2717.5,2717.1,3.68037]
[1739579051515,0.7831,2717.6,2717.1,3.68037]
[1739579051516,4.46282,2717.6,2717.1,3.68037]
[1739579051912,0.7831,2717.6,2717.2,3.68023]
[1739579052146,0.7831,2717.8,2717.4,3.10921256]
[1739579052328,0.7831,2717.8,2717.1,6.78950256]
[1739579052660,3.67975,2717.6,2717.0,3.68048]
[1739579052864,3.67975,2717.6,2717.1,3.68032]
[1739579053361,3.67985,2717.5,2717.1,3.68032]
[1739579055429,3.67972,2717.6,2717.1,3.68032]
[1739579055625,3.67961,2717.7,2717.1,3.68032]
[1739579055819,3.67981,2717.6,2717.1,3.68032]
[1739579056020,3.72585087,2717.5,2717.1,3.68032]
[1739579056447,0.04600087,2717.5,2717.1,3.68032]
[1739579056651,3.67991,2717.5,2717.0,3.68052]
[1739579057077,3.67991,2717.5,2717.1,3.68038]
[1739579057285,0.7831,2717.3,2716.8,3.93131256]
[1739579057447,3.68032,2717.2,2716.8,3.10921256]
[1739579058653,3.68032,2717.2,2716.8,6.78998256]
[1739579058964,0.7831,2717.6,2717.1,3.10921256]
[1739579059166,0.7831,2717.6,2717.1,3.93131256]
[1739579059363,0.7831,2717.6,2717.2,3.68018]
[1739579059673,0.7831,2717.6,2717.1,3.93131256]
[1739579059857,0.7831,2717.6,2717.3,3.68002]
[1739579060258,0.7831,2717.6,2717.4,3.67995]
[1739579060444,0.7831,2718.3,2717.8,3.67944]
[1739579060648,0.7831,2718.3,2717.8,7.35881]
[1739579061493,0.7831,2718.3,2717.8,3.67937]
[1739579061673,0.7831,2718.3,2717.9,3.67922]
[1739579063809,4.04624,2718.6,2718.0,3.86221256]
[1739579064008,4.04624,2718.6,2718.1,3.67901]
[1739579064192,3.67851,2718.5,2718.1,3.67901]
[1739579065202,3.67872,2718.4,2718.0,3.86221256]
[1739579067008,3.67872,2718.4,2718.0,3.10921256]
[1739579067207,3.67878,2718.3,2717.7,7.54170256]
[1739579067501,3.67878,2718.3,2717.8,3.67944]
[1739579067887,3.72470574,2718.4,2717.9,3.67924]
[1739579067888,3.67872,2718.4,2717.9,3.67924]
[1739579068084,3.67872,2718.4,2717.7,8.29587282]
[1739579068085,3.67878,2718.3,2717.7,8.29587282]
[1739579068299,0.7524,2718.2,2717.8,3.67942]
[1739579068499,4.43141,2718.2,2717.7,7.54170256]
[1739579068702,4.47739592,2718.2,2717.7,7.54170256]
[1739579068882,8.15639592,2718.2,2717.7,6.78870256]
[1739579069083,8.11041,2718.2,2717.7,6.78870256]
[1739579069404,4.43138,2718.2,2717.7,6.78870256]
[1739579069704,3.67905,2718.1,2717.7,6.78874256]
[1739579069901,3.67938,2717.9,2717.4,6.78909256]
[1739579070071,0.7524,2717.8,2717.4,3.10921256]
[1739579070271,3.67959,2717.7,2717.4,3.10921256]
[1739579070467,0.7524,2717.8,2717.5,3.67976]
[1739579072512,0.7524,2717.8,2717.5,7.35949]
[1739579072678,3.67925,2718.0,2717.5,3.67973]
[1739579072884,4.43165,2718.0,2717.6,3.6797]
[1739579073217,3.67902,2718.2,2717.7,3.67953]
[1739579073385,4.43142,2718.2,2717.7,3.67953]
[1739579074118,0.7524,2718.2,2717.4,3.10921256]
[1739579074314,3.67913,2718.1,2717.4,3.10921256]
[1739579074620,3.67913,2718.1,2717.7,3.67955]
[1739579075116,0.7524,2718.2,2717.7,6.78871256]
[1739579075336,0.7524,2718.4,2717.9,3.67918]
[1739579075481,0.7524,2718.4,2718.0,3.6791]
[1739579075684,4.43106,2718.4,2717.9,7.35842]
[1739579076414,4.43106,2718.4,2718.0,3.67914]
[1739579076641,0.7524,2718.4,2718.0,3.67906]
[1739579076803,0.7524,2718.4,2717.9,3.67931]
[1739579076990,3.67884,2718.3,2717.8,3.67935]